bitfinex-derivatives/quotes_SOLF0:USTF0_20241222
["timestamp","ask_amount","ask_price","bid_price","bid_amount"]
[1734877152957,2.92,183.51,183.43,2.7272]
[1734877153158,2.92,183.51,183.42,2.92]
[1734877154560,2.92,183.51,183.26,89.03689371]
[1734877154754,4.9936,183.5,183.31,1.5883]
[1734877154953,2.7276,183.41,183.34,2.7285]
[1734877155159,2.7276,183.41,183.34,2.92]
[1734877155458,2.92,183.45,183.34,2.92]
[1734877155657,2.7276,183.42,183.34,5.6486]
[1734877155958,2.92,183.45,183.34,2.92]
[1734877156158,2.7277,183.4,183.33,5.6487]
[1734877156858,2.7276,183.41,183.33,5.6487]
[1734877157053,1.0,183.44,183.33,5.6487]
[1734877157248,2.92,183.43,183.33,5.6487]
[1734877158158,2.92,183.43,183.33,2.92]
[1734877158351,3.4674,183.42,183.33,2.92]
[1734877158951,4.4674,183.42,183.33,2.92]
[1734877159362,1.0,183.42,183.33,2.92]
[1734877159859,6.319,183.49,183.33,2.92]
[1734877160652,1.0,183.48,183.33,2.92]
[1734877161564,2.7267,183.47,183.4,2.7276]
[1734877161761,1.0,183.48,183.4,2.7276]
[1734877162055,1.0,183.48,183.39,2.92]
[1734877162654,1.0,183.48,183.4,4.843]
[1734877163358,2.92,183.54,183.4,4.843]
[1734877164162,2.7261,183.51,183.44,2.7271]
[1734877164357,2.92,183.54,183.44,2.92]
[1734877164561,2.92,183.54,183.41,2.92]
[1734877164763,2.92,183.54,183.43,2.7273]
[1734877164960,2.92,183.54,183.41,2.92]
[1734877166264,2.7261,183.51,183.45,2.727]
[1734877166463,2.92,183.54,183.45,2.727]
[1734877166667,2.92,183.54,183.41,2.92]
[1734877166966,2.92,183.54,183.27,5.4591]
[1734877167165,1.0,183.53,183.29,8.80581456]
[1734877167368,2.7268,183.46,183.3,1.00241456]
[1734877167664,1.0,183.53,183.29,7.8034]
[1734877167962,1.0,183.53,183.3,1.0025086]
[1734877168265,1.0,183.53,183.29,7.8034]
[1734877168962,0.9126537,183.52,183.29,7.8034]
[1734877169558,2.7273,183.44,183.29,7.8034]
[1734877169864,2.92,183.47,183.29,7.8034]
[1734877170568,2.92,183.47,183.3,1.00245632]
[1734877170765,2.7267,183.48,183.3,1.00245632]
[1734877170965,3.92,183.51,183.3,1.00245632]
[1734877171163,2.92,183.5,183.41,2.7275]
[1734877171664,2.7266,183.48,183.41,2.7275]
[1734877173966,2.7266,183.48,183.4,2.92]
[1734877174173,2.7264,183.49,183.4,2.92]
[1734877174375,2.92,183.5,183.4,2.92]
[1734877174969,1.7093,183.49,183.4,2.92]
[1734877175266,1.7093,183.49,183.38,2.92]
[1734877175475,3.4123,183.48,183.36,2.92]
[1734877175668,3.4123,183.48,183.35,2.92]
[1734877176369,2.727,183.46,183.39,2.7278]
[1734877176667,3.4123,183.48,183.35,2.92]
[1734877176971,3.7267,183.47,183.4,2.7276]
[1734877177373,1.0,183.47,183.35,2.92]
[1734877177573,2.727,183.45,183.35,2.92]
[1734877177970,2.727,183.45,183.38,2.7279]
[1734877178168,2.727,183.45,183.35,2.92]
[1734877178369,1.0,183.47,183.35,2.92]
[1734877178573,2.7269,183.46,183.39,2.7277]
[1734877179576,1.0,183.47,183.35,2.92]
[1734877180074,1.0,183.47,183.41,2.7275]
[1734877180674,3.7267,183.47,183.41,2.7275]
[1734877183878,3.2952,183.56,183.46,2.7268]
[1734877184174,3.2952,183.56,183.46,2.92]
[1734877184376,2.7256,183.55,183.49,2.7264]
[1734877185578,1.6162,183.56,183.46,2.92]
[1734877185771,54.15064,183.59,183.46,2.92]
[1734877186185,56.87564,183.59,183.52,2.7259]
[1734877186377,56.87564,183.59,183.52,5.6459]
[1734877186577,54.15064,183.59,183.52,2.92]
[1734877187679,54.15064,183.59,183.55,2.7254]
[1734877187879,54.15064,183.59,183.52,2.92]
[1734877188484,54.15064,183.59,183.56,2.7252]
[1734877188782,54.15064,183.59,183.57,2.9]
[1734877189269,54.15064,183.59,183.58,2.7251]
[1734877190779,42.79234,183.59,183.58,2.7251]
[1734877192181,42.79234,183.59,183.44,60.54778943]
[1734877192382,42.79234,183.59,183.45,3.90154081]
[1734877192586,42.79234,183.59,183.46,1.00154081]
[1734877193073,42.79234,183.59,183.44,60.54778943]
[1734877193383,42.79234,183.59,183.47,2.9]
[1734877193687,42.79234,183.59,183.53,2.7257]
[1734877193885,42.79234,183.59,183.53,5.6257]
[1734877194674,42.79234,183.59,183.53,2.9]
[1734877194880,42.79234,183.59,183.54,2.7256]
[1734877195578,42.79234,183.59,183.53,2.9]
[1734877195782,42.79234,183.59,183.55,2.7255]
[1734877195983,42.79234,183.59,183.53,2.9]
[1734877196282,42.79234,183.59,183.54,2.7256]
[1734877197184,42.79234,183.59,183.52,2.7259]
[1734877197391,42.79234,183.59,183.52,2.9]
[1734877197582,44.46674,183.59,183.52,2.9]
[1734877197784,42.79234,183.59,183.52,2.9]
[1734877198385,42.79234,183.59,183.57,2.7251]
[1734877198584,42.79234,183.59,183.57,5.6251]
[1734877200186,42.79234,183.59,183.55,2.7255]
[1734877200388,42.79234,183.59,183.53,2.9]
[1734877202192,42.79234,183.59,183.56,2.7253]
[1734877203492,42.79234,183.59,183.53,2.9]
[1734877203693,44.41644,183.59,183.51,2.9]
[1734877203902,44.41644,183.59,183.41,3.3825]
[1734877204101,44.41644,183.59,183.42,2.9]
[1734877204286,1.0,183.58,183.42,2.9]
[1734877204487,2.7259,183.53,183.46,2.7267]
[1734877204797,2.9,183.57,183.42,2.9]
[1734877205394,2.7257,183.54,183.47,2.7265]
[1734877205594,2.9,183.57,183.47,2.9]
[1734877205898,1.0,183.58,183.51,2.7261]
[1734877206087,1.0,183.58,183.47,2.9]
[1734877207194,2.7259,183.53,183.47,2.9]
[1734877207396,3.3012,183.52,183.47,2.9]
[1734877207897,3.3012,183.52,183.46,5.6268]
[1734877209201,3.3012,183.52,183.46,2.9]
[1734877210195,2.7265,183.49,183.42,2.7273]
[1734877210398,1.7,183.51,183.35,1.6046]
[1734877210601,2.7,183.51,183.39,2.9]
[1734877210803,5.6,183.51,183.39,2.9]
[1734877211005,2.7267,183.47,183.4,2.7276]
[1734877211706,5.6,183.51,183.34,1.5848]
[1734877211903,5.6,183.51,183.35,2.9]
[1734877212302,2.7264,183.49,183.42,2.7274]
[1734877212502,2.7264,183.49,183.41,2.9]
[1734877212705,2.7264,183.49,183.42,2.9]
[1734877213406,2.7264,183.49,183.42,5.6274]
[1734877214001,2.7,183.51,183.42,2.9]
[1734877214599,2.7,183.51,183.45,2.7269]
[1734877214802,2.7,183.51,183.42,2.9]
[1734877215902,2.7,183.51,183.34,1.5848]
[1734877216305,2.7271,183.45,183.38,2.728]
[1734877216503,2.7271,183.45,183.35,2.9]
[1734877216812,2.7,183.51,183.35,2.9]
[1734877217500,2.7,183.51,183.37,2.728]
[1734877217801,2.7,183.51,183.35,2.9]
[1734877218005,2.7271,183.45,183.38,2.728]
[1734877218208,3.3064,183.44,183.3,1.6046]
[1734877218511,1.6064,183.43,183.31,2.9]
[1734877218707,2.7275,183.42,183.34,2.7285]
[1734877218906,2.7275,183.42,183.34,2.9]
[1734877219308,1.6064,183.43,183.3,1.6046]
[1734877219507,2.7278,183.4,183.31,2.9]
[1734877220308,2.728,183.39,183.31,2.9]
[1734877220505,2.9,183.41,183.28,1.09122653]
[1734877220904,17.30320641,183.4,183.22,60.54778943]
[1734877221208,0.9132757,183.39,183.22,60.54778943]
[1734877221711,0.9133922,183.38,183.22,60.54778943]
[1734877221909,2.7287,183.34,183.22,60.54778943]
[1734877222212,3.2025,183.33,183.19,2.9]
[1734877222509,5.9314,183.33,183.25,2.7299]
[1734877222710,3.2025,183.33,183.25,2.7299]
[1734877223017,3.2025,183.33,183.19,2.9]
[1734877224111,2.729,183.32,183.2,2.9]
[1734877224308,2.729,183.32,183.24,2.73]
[1734877224509,3.2025,183.33,183.25,2.9]
[1734877225209,3.2025,183.33,183.28,2.7295]
[1734877225506,1.0,183.38,183.25,2.9]
[1734877225714,1.0,183.38,183.26,3.2247]
[1734877225904,1.0,183.38,183.32,2.7288]
[1734877226107,1.0,183.38,183.32,5.6288]
[1734877226714,1.0,183.38,183.33,2.7288]
[1734877227114,1.0,183.38,183.32,2.9]
[1734877228223,3.2532,183.37,183.32,2.9]
[1734877228512,2.7285,183.35,183.28,2.9]
[1734877228713,3.2532,183.37,183.28,2.9]
[1734877229420,2.7283,183.36,183.28,5.6295]
[1734877230316,3.2532,183.37,183.28,2.9]
[1734877230317,2.7285,183.35,183.28,2.9]
[1734877230617,3.2532,183.37,183.17,3.275]
[1734877231006,1.0,183.34,183.17,3.275]
[1734877231315,2.7291,183.31,183.18,2.92]
[1734877232417,2.7292,183.3,183.23,2.7301]
[1734877233518,4.5903,183.33,183.2,2.92]
[1734877233816,3.4072,183.29,183.17,2.92]
[1734877234115,2.7298,183.27,183.19,2.7307]
[1734877234318,2.7298,183.27,183.18,2.92]
[1734877235515,2.7298,183.27,183.2,2.7307]
[1734877235817,4.4072,183.29,183.18,2.92]
[1734877236616,4.4072,183.29,183.25,2.7299]
[1734877236922,4.4072,183.29,183.23,2.92]
[1734877238115,7.1367,183.29,183.23,2.92]
[1734877238317,4.4072,183.29,183.14,62.36]
[1734877238619,2.7302,183.24,183.17,2.731]
[1734877238919,2.92,183.28,183.17,2.731]
[1734877239121,2.73,183.25,183.17,2.731]
[1734877239416,2.92,183.28,183.17,2.731]
[1734877239621,2.7307,183.21,183.13,2.7317]
[1734877239818,2.92,183.23,183.04,60.54778943]
[1734877240016,1.5889,183.2,183.04,60.54778943]
[1734877240216,2.7319,183.13,183.04,63.28088943]
[1734877240424,1.5889,183.12,183.04,63.28088943]
[1734877241223,1.5889,183.12,183.03,2.7332]
[1734877241422,1.5889,183.12,183.01,2.92]
[1734877242421,1.0,183.11,182.93,69.49200365]
[1734877242726,2.92,183.1,182.93,69.49200365]
[1734877243018,2.92,183.1,182.94,2.92]
[1734877243215,1.5889,183.12,182.94,4.0153]
[1734877243421,2.7313,183.16,183.01,2.7335]
[1734877243622,3.4483,183.19,183.02,7.3783]
[1734877243921,3.4483,183.19,183.03,2.92]
[1734877244116,2.731,183.18,183.03,2.92]
[1734877244317,1.0,183.18,183.03,2.92]
[1734877244518,2.6171,183.18,183.03,2.92]
[1734877245818,1.0,183.18,183.03,2.92]
[1734877246026,1.0,183.18,183.14,2.7316]
[1734877246219,1.0,183.18,183.03,2.92]
[1734877246220,1.0,183.18,183.13,2.92]
[1734877246520,4.8907,183.26,183.14,2.92]
[1734877246723,4.8907,183.26,183.15,2.92]
[1734877247221,2.92,183.33,183.15,2.92]
[1734877247419,7.7933,183.33,183.15,2.92]
[1734877248320,2.7293,183.3,183.21,2.7306]
[1734877248526,7.7933,183.33,183.21,2.92]
[1734877248717,1.0,183.32,183.21,2.92]
[1734877248920,2.7291,183.31,183.22,2.7303]
[1734877249726,1.0,183.32,183.21,2.92]
[1734877250530,1.0,183.32,183.26,2.7298]
[1734877250731,42.86684,183.34,183.27,2.92]
[1734877250936,42.86684,183.34,183.24,2.92]
[1734877251230,42.86684,183.34,183.17,3.2185]
[1734877251231,42.86684,183.34,183.2,2.92]
[1734877251431,4.9835,183.33,183.2,2.92]
[1734877251626,5.9835,183.33,183.2,2.92]
[1734877251826,2.7292,183.3,183.22,2.7304]
[1734877252131,5.9835,183.33,183.2,2.92]
[1734877253136,2.7295,183.28,183.2,5.6507]
[1734877253325,2.92,183.3,183.2,2.92]
[1734877253630,2.7301,183.25,183.17,2.7312]
[1734877253829,2.7301,183.25,183.16,2.92]
[1734877253830,1.0,183.27,183.15,2.92]
[1734877254329,2.92,183.3,183.15,2.92]
[1734877254330,2.7306,183.21,183.15,2.92]
[1734877254520,4.9835,183.33,183.15,2.92]
[1734877254521,2.92,183.23,183.15,2.92]
[1734877254724,2.7309,183.19,183.12,2.7319]
[1734877254926,3.4285,183.22,183.12,2.92]
[1734877255129,1.0,183.2,183.12,2.92]
[1734877256020,1.0,183.2,183.1,2.92]
[1734877256226,1.7217,183.19,183.07,2.92]
[1734877256426,2.92,183.18,183.07,2.92]
[1734877256625,2.92,183.18,183.03,4.2842]
[1734877256832,2.92,183.18,183.04,2.92]
[1734877257027,2.7315,183.15,183.04,2.92]
[1734877257233,2.92,183.18,183.03,4.2842]
[1734877257433,2.92,183.18,182.96,59.93647595]
[1734877257729,3.92,183.18,182.97,5.01667137]
[1734877258034,1.0,183.18,182.98,2.92]
[1734877258231,1.0,183.18,182.99,2.0967079]
[1734877258430,1.0,183.18,182.99,1.0924]
[1734877258627,2.7316,183.15,183.06,2.7327]
[1734877258828,2.7316,183.15,183.05,2.92]
[1734877259030,1.0,183.18,183.05,2.92]
[1734877259630,1.0,183.18,183.07,2.7326]
[1734877259834,1.0,183.18,183.06,2.92]
[1734877260228,1.0,183.18,183.07,2.7325]
[1734877260428,1.0,183.18,183.06,2.92]
[1734877260829,4.9211,183.33,183.07,5.42663566]
[1734877261031,3.83383121,183.32,183.07,4.4228]
[1734877261225,3.83383121,183.32,183.08,1.0037925]
[1734877261432,0.91381069,183.31,183.08,1.0037925]
[1734877261631,1.91381069,183.31,183.07,4.4228]
[1734877261831,1.0,183.31,183.07,4.4228]
[1734877262336,0.91396949,183.3,183.07,3.14]
[1734877262533,0.91396949,183.3,183.02,61.03087595]
[1734877262733,0.91396949,183.3,183.03,3.14]
[1734877262935,0.91396949,183.3,183.08,2.7324]
[1734877263135,1.0,183.29,183.08,3.14]
[1734877263429,2.7322,183.1,183.04,5.873]
[1734877263734,3.14,183.16,182.99,3.14]
[1734877263926,8.2042,183.15,182.99,3.14]
[1734877264131,1.0,183.09,182.99,3.14]
[1734877264731,3.3726,183.18,182.99,3.14]
[1734877265639,1.0,183.17,182.99,3.14]
[1734877265936,1.0,183.17,183.0,1.00423565]
[1734877266130,1.0,183.17,183.11,2.732]
[1734877266330,1.0,183.17,182.97,1.0944]
[1734877266533,1.0,183.17,182.98,4.1440878]
[1734877266833,2.7313,183.16,182.99,1.0040878]
[1734877267137,2.7313,183.16,183.0,3.14]
[1734877267334,2.7313,183.16,183.07,2.7325]
[1734877267528,2.7313,183.16,183.08,3.14]
[1734877267733,1.0,183.17,182.98,59.93647595]
[1734877267929,3.2132,183.16,182.99,3.14]
[1734877268137,2.7327,183.07,182.99,3.14]
[1734877268338,2.7327,183.07,182.97,61.03087595]
[1734877268534,2.7327,183.07,183.0,3.36]
[1734877269234,2.733,183.05,182.97,3.8284]
[1734877269535,3.36,183.07,182.93,68.39670365]
[1734877269739,6.671,183.06,182.89,151.75482286]
[1734877269935,2.7339,182.99,182.91,62.67137595]
[1734877270537,3.36,183.05,182.91,59.93647595]
[1734877270739,4.36,183.05,182.91,59.93647595]
[1734877271332,4.36,183.05,182.89,3.36]
[1734877271534,4.36,183.05,182.9,3.36]
[1734877271832,2.734,182.98,182.9,3.36]
[1734877272038,2.734,182.98,182.91,2.735]
[1734877272644,1.0,183.05,182.9,3.36]
[1734877273743,2.734,182.98,182.91,2.7349]
[1734877273942,2.734,182.98,182.9,3.36]
[1734877273943,3.36,183.02,182.9,3.36]
[1734877274138,1.0,183.05,182.9,3.36]
[1734877274339,2.7337,183.01,182.94,2.7344]
[1734877274743,1.0,183.05,182.9,3.36]
[1734877275442,2.7337,183.0,182.93,2.7346]
[1734877275639,1.0,183.05,182.9,3.36]
[1734877276134,1.0,183.05,182.82,3.36]
[1734877276339,1.0,183.05,182.8,59.93647595]
[1734877276644,1.0,183.05,182.81,4.36521624]
[1734877276842,1.0,183.05,182.81,3.36]
[1734877277037,1.0,183.05,182.87,2.7356]
[1734877277241,0.91525095,183.04,182.87,2.7356]
[1734877277643,1.0,183.05,182.88,2.7354]
[1734877277843,1.0,183.05,182.87,3.36]
[1734877278143,2.7342,182.97,182.91,2.735]
[1734877278740,3.36,183.01,182.89,3.36]
[1734877278942,1.6578,183.0,182.79,1.0948]
[1734877279440,1.6578,183.0,182.8,3.36]
[1734877279745,2.7357,182.87,182.8,2.7367]
[1734877280445,3.36,182.91,182.82,2.7362]
[1734877280635,3.36,182.91,182.79,3.36]
[1734877281241,2.7354,182.89,182.81,2.7364]
[1734877281545,2.7354,182.89,182.79,3.36]
[1734877282141,6.0952,182.91,182.82,2.7364]
[1734877282346,3.36,182.91,182.82,2.7364]
[1734877282549,3.36,182.95,182.79,3.36]
[1734877282741,3.36,182.95,182.8,1.0956]
[1734877282942,1.753,182.98,182.8,1.0956]
[1734877283239,3.36,182.97,182.81,1.6683]
[1734877283639,4.36,182.97,182.82,1.6049]
[1734877283836,1.5921,182.96,182.82,1.6049]
[1734877284046,2.7353,182.9,182.81,2.7364]
[1734877284248,1.5921,182.96,182.79,3.36]
[1734877284438,1.0,182.95,182.79,3.36]
[1734877284638,2.7351,182.91,182.83,2.7361]
[1734877284944,1.0,182.95,182.8,3.2732]
[1734877285144,2.7354,182.89,182.82,2.7364]
[1734877285345,2.7354,182.89,182.8,3.2732]
[1734877285346,1.0,182.95,182.8,3.2732]
[1734877285747,2.7348,182.93,182.86,2.7358]
[1734877285950,1.0,182.95,182.84,3.36]
[1734877286352,2.7348,182.93,182.84,3.36]
[1734877286547,1.0,182.95,182.84,3.36]
[1734877286943,2.7348,182.93,182.84,3.36]
[1734877287551,2.7346,182.94,182.87,2.7356]
[1734877287747,1.0,182.95,182.84,3.36]
[1734877287952,2.7334,183.02,182.94,2.7345]
[1734877288253,2.7334,183.02,182.95,3.36]
[1734877288854,1.6916,183.06,182.95,3.36]
[1734877289245,1.0,183.05,182.96,3.36]
[1734877289452,2.7334,183.02,182.96,3.36]
[1734877289855,1.0,183.05,182.96,3.36]
[1734877290054,2.734,182.99,182.92,6.0949]
[1734877291057,1.0,183.01,182.92,3.36]
[1734877291244,3.36,183.05,182.92,3.36]
[1734877291451,3.36,183.05,182.83,62.56]
[1734877291651,2.7346,182.94,182.84,3.36]
[1734877291852,4.36,182.98,182.84,3.36]
[1734877292150,4.36,182.98,182.8,4.3707]
[1734877292355,3.3533,182.97,182.81,3.36]
[1734877292551,5.0281,182.97,182.81,3.36]
[1734877293054,1.0,182.96,182.81,3.36]
[1734877294261,1.0,182.96,182.89,2.7353]
[1734877294964,1.0,182.96,182.88,3.36]
[1734877295563,2.7349,182.92,182.88,3.36]
[1734877296668,1.0,182.96,182.88,3.36]
[1734877297771,3.7344,182.96,182.9,2.7352]
[1734877297967,1.0,182.96,182.88,3.36]
[1734877298369,1.0,182.96,182.8,4.3707]
[1734877298672,1.0,182.96,182.81,3.5]
[1734877299471,2.7351,182.91,182.81,3.5]
[1734877299664,1.0,182.96,182.81,3.5]
[1734877300270,2.7349,182.93,182.82,3.5]
[1734877300471,1.0,182.96,182.82,3.5]
[1734877301071,2.7346,182.94,182.82,3.5]
[1734877301370,2.7346,182.94,182.86,2.7357]
[1734877301670,1.0,182.96,182.87,3.5]
[1734877301870,3.7344,182.96,182.87,3.5]
[1734877302371,1.0,182.96,182.87,3.5]
[1734877302668,3.5,182.95,182.77,59.93647595]
[1734877302867,2.736,182.85,182.77,59.93647595]
[1734877303070,3.5,182.9,182.77,59.93647595]
[1734877303371,5.1627,182.89,182.75,62.67387595]
[1734877303563,6.8029,182.88,182.75,62.67387595]
[1734877304069,2.7367,182.81,182.75,62.67387595]
[1734877304265,7.8029,182.88,182.75,59.93647595]
[1734877304867,7.8029,182.88,182.72,152.99122286]
[1734877305068,7.8029,182.88,182.74,2.7376]
[1734877305268,7.8029,182.88,182.72,4.5964]
[1734877305469,7.8029,182.88,182.74,2.7375]
[1734877305769,2.7368,182.79,182.74,2.7375]
[1734877305970,7.8029,182.88,182.72,4.5964]
[1734877306363,4.3029,182.88,182.72,4.5964]
[1734877306572,4.3029,182.88,182.8,2.7366]
[1734877306873,2.7358,182.87,182.8,2.7366]
[1734877307072,2.7358,182.87,182.81,2.7365]
[1734877307266,1.0,182.88,182.78,3.5]
[1734877307569,1.0,182.88,182.82,2.7363]
[1734877308375,1.0,182.88,182.81,3.5]
[1734877308574,3.7355,182.88,182.81,6.2364]
[1734877308972,1.0,182.88,182.81,3.5]
[1734877309373,1.0,182.88,182.73,60.69691571]
[1734877309374,1.0,182.88,182.77,3.5]
[1734877311475,3.7356,182.88,182.81,2.7365]
[1734877311671,1.0,182.88,182.77,3.5]
[1734877312279,1.6082,182.96,182.77,3.5]
[1734877312481,2.7343,182.96,182.89,2.7353]
[1734877312678,3.5,182.99,182.87,3.5]
[1734877313377,4.9697,183.02,182.87,3.5]
[1734877313579,2.7341,182.97,182.9,2.735]
[1734877313976,2.7341,182.97,182.88,3.3043]
[1734877314279,2.7341,182.98,182.91,2.735]
[1734877314480,8.4697,183.02,182.92,3.5]
[1734877314481,4.9697,183.02,182.92,3.5]
[1734877315274,2.7337,183.0,182.93,2.7347]
[1734877315476,3.5,183.04,182.92,3.5]
[1734877315782,3.5,183.05,182.92,3.5]
[1734877316580,1.0,183.04,182.92,3.5]
[1734877317184,2.7336,183.01,182.95,2.7344]
[1734877317379,1.0,183.04,182.92,3.5]
[1734877317585,2.7333,183.03,182.92,3.5]
[1734877317982,1.0,183.04,182.92,3.5]
[1734877318184,3.7331,183.04,182.92,3.5]
[1734877318482,1.0,183.04,182.92,3.5]
[1734877318689,2.7332,183.03,182.96,2.7342]
[1734877318875,2.7332,183.03,182.92,3.5]
[1734877319080,1.0,183.04,182.92,3.5]
[1734877319579,1.0,183.04,182.98,2.734]
[1734877319884,42.94391,183.08,182.98,3.5]
[1734877320085,2.7328,183.07,183.0,2.7336]
[1734877320278,42.94391,183.08,182.98,3.5]
[1734877321086,2.733,183.05,182.98,3.5]
[1734877321387,42.94391,183.08,182.98,3.5]
[1734877321789,2.7332,183.04,182.98,3.5]
[1734877322189,42.94391,183.08,182.89,1.0927]
[1734877322387,2.7339,182.99,182.92,2.7349]
[1734877322588,3.5,183.05,182.9,3.5]
[1734877322777,42.94391,183.08,182.9,3.5]
[1734877324790,42.94391,183.08,182.91,1.00458813]
[1734877324986,42.94391,183.08,182.91,1.00457331]
[1734877325286,42.94391,183.08,183.05,2.7329]
[1734877325484,42.94391,183.08,183.04,3.5]
[1734877325695,36.60191,183.08,183.05,5.0905]
[1734877325987,36.60191,183.08,183.07,2.7326]
[1734877327290,36.60191,183.08,182.94,43.84864039]
[1734877327495,36.60191,183.08,182.97,60.69691571]
[1734877327691,39.33451,183.08,183.0,2.7337]
[1734877327992,36.60191,183.08,183.01,3.44]
[1734877328494,36.60191,183.08,183.03,2.7332]
[1734877328696,36.60191,183.08,183.01,3.44]
[1734877329593,36.60191,183.08,183.02,2.7332]
[1734877329896,36.60191,183.08,183.01,3.44]
[1734877330092,36.60191,183.08,183.05,2.7329]
[1734877330299,36.60191,183.08,183.06,3.44]
[1734877331997,36.60191,183.08,183.06,6.1727]
[1734877332301,36.60191,183.08,183.06,3.44]
[1734877332597,36.60191,183.08,183.07,2.7326]
[1734877333701,36.60191,183.08,182.89,60.69691571]
[1734877333894,36.60191,183.08,182.95,1.00428431]
[1734877334093,36.60191,183.08,182.9,60.69691571]
[1734877334500,1.5997,183.07,182.95,3.44]
[1734877334696,2.7328,183.06,182.95,3.44]
[1734877334902,2.5997,183.07,182.95,3.44]
[1734877335904,2.5997,183.07,183.0,2.7336]
[1734877336101,2.5997,183.07,183.0,3.44]
[1734877336402,2.7329,183.06,183.0,3.44]
[1734877337703,2.5997,183.07,183.0,3.44]
[1734877337901,2.5997,183.07,183.01,2.7334]
[1734877338207,2.5997,183.07,183.0,3.44]
[1734877338403,2.733,183.05,183.0,3.44]
[1734877338707,1.0,183.07,183.0,3.44]
[1734877339300,1.0,183.07,183.02,2.7333]
[1734877339505,1.0,183.07,183.0,3.44]
[1734877340004,1.0,183.07,183.03,2.7332]
[1734877340305,1.0,183.07,183.0,3.44]
[1734877340697,1.0,183.07,183.02,2.7334]
[1734877341099,1.0,183.07,182.87,62.56]
[1734877341308,1.0,183.07,182.93,3.44]
[1734877341710,2.7336,183.01,182.94,2.7346]
[1734877341904,3.44,183.05,182.93,3.44]
[1734877342108,2.7334,183.02,182.95,2.7343]
[1734877342507,4.9271,183.04,182.87,62.56]
[1734877342713,2.7341,182.98,182.88,3.44]
[1734877343008,4.9271,183.04,182.87,62.56]
[1734877343211,2.7345,182.95,182.88,2.7354]
[1734877343516,3.44,183.0,182.87,3.44]
[1734877344214,1.0,182.99,182.87,3.44]
[1734877344512,2.7343,182.96,182.9,2.7352]
[1734877345115,1.0,182.99,182.87,3.44]
[1734877345613,1.0,182.99,182.78,1.41035408]
[1734877345812,2.7343,182.97,182.9,2.7351]
[1734877346013,1.0,182.99,182.78,1.41035408]
[1734877346206,1.7133,182.96,182.79,3.44]
[1734877346409,6.1272,182.95,182.79,3.44]
[1734877346711,6.8326,182.95,182.78,1.41035408]
[1734877347009,6.8326,182.95,182.79,3.44]
[1734877347512,2.7352,182.91,182.83,2.7362]
[1734877347810,2.7352,182.91,182.78,1.41035408]
[1734877348007,2.7352,182.91,182.79,3.44]
[1734877348203,2.7349,182.93,182.79,3.44]